[Event "Titled Tuesday Blitz December 14 2021"]
[White "Coto Mederos, Michel"]
[Black "Djordjevic, Vuk"]
[WhiteFideId "3508528"]
[BlackFideId "902098"]
[WhiteElo "2427"]
[BlackElo "2463"]
[Result "0-1"]
[Round "11"]
[TimeControl "180+1"]
[Date "2021.12.14"]
[WhiteClock "0:00:01"]
[BlackClock "0:00:01"]

1. d4 {[%clk 0:03:00]}  Nf6 {[%clk 0:02:59]} 2. c4 {[%clk 0:03:00]}  c5 {[%clk 0:02:59]} 3. d5 {[%clk 0:02:59]}  b5 {[%clk 0:03:00]} 4. Qc2 {[%clk 0:02:59]}  bxc4 {[%clk 0:02:59]} 5. e4 {[%clk 0:03:00]}  d6 {[%clk 0:03:00]} 6. Bxc4 {[%clk 0:02:58]}  g6 {[%clk 0:03:00]} 7. Nf3 {[%clk 0:02:58]}  Bg7 {[%clk 0:03:01]} 8. O-O {[%clk 0:02:57]}  O-O {[%clk 0:03:01]} 9. h3 {[%clk 0:02:55]}  a5 {[%clk 0:03:01]} 10. Na3 {[%clk 0:02:54]}  Ba6 {[%clk 0:03:00]} 11. Nb5 {[%clk 0:02:46]}  a4 {[%clk 0:03:00]} 12. Bd2 {[%clk 0:02:20]}  Nbd7 {[%clk 0:02:59]} 13. Rfe1 {[%clk 0:02:15]}  Qb6 {[%clk 0:02:46]} 14. Na3 {[%clk 0:01:55]}  Rfb8 {[%clk 0:02:45]} 15. Rab1 {[%clk 0:01:54]}  Ne8 {[%clk 0:02:39]} 16. Qxa4 {[%clk 0:01:29]}  Bxc4 {[%clk 0:01:32]} 17. Qxc4 {[%clk 0:01:14]}  Qa6 {[%clk 0:01:32]} 18. Qc2 {[%clk 0:00:56]}  Qa4 {[%clk 0:01:25]} 19. Qc1 {[%clk 0:00:32]}  Nc7 {[%clk 0:01:19]} 20. Bc3 {[%clk 0:00:28]}  Nf6 {[%clk 0:01:00]} 21. Nd2 {[%clk 0:00:26]}  Bh6 {[%clk 0:00:56]} 22. Qd1 {[%clk 0:00:18]}  Qxd1 {[%clk 0:00:31]} 23. Rbxd1 {[%clk 0:00:19]}  Nd7 {[%clk 0:00:28]} 24. Ndc4 {[%clk 0:00:17]}  Ra4 {[%clk 0:00:25]} 25. b3 {[%clk 0:00:16]}  Ra7 {[%clk 0:00:22]} 26. Re2 {[%clk 0:00:14]}  Bg7 {[%clk 0:00:18]} 27. Bxg7 {[%clk 0:00:13]}  Kxg7 {[%clk 0:00:19]} 28. Nb1 {[%clk 0:00:11]}  Rba8 {[%clk 0:00:19]} 29. Nc3 {[%clk 0:00:11]}  Na6 {[%clk 0:00:16]} 30. e5 {[%clk 0:00:10]}  dxe5 {[%clk 0:00:12]} 31. Nxe5 {[%clk 0:00:11]}  Nxe5 {[%clk 0:00:11]} 32. Rxe5 {[%clk 0:00:11]}  Nb4 {[%clk 0:00:12]} 33. a4 {[%clk 0:00:12]}  Rd7 {[%clk 0:00:09]} 34. d6 {[%clk 0:00:10]}  exd6 {[%clk 0:00:05]} 35. Rxc5 {[%clk 0:00:09]}  dxc5 {[%clk 0:00:05]} 36. Rxd7 {[%clk 0:00:09]}  Re8 {[%clk 0:00:06]} 37. g3 {[%clk 0:00:08]}  Re1+ {[%clk 0:00:06]} 38. Kg2 {[%clk 0:00:08]}  Rc1 {[%clk 0:00:05]} 39. Ne4 {[%clk 0:00:07]}  Rc2 {[%clk 0:00:04]} 40. Ng5 {[%clk 0:00:06]}  Rc3 {[%clk 0:00:02]} 41. Rxf7+ {[%clk 0:00:05]}  Kg8 {[%clk 0:00:02]} 42. Rc7 {[%clk 0:00:04]}  Nd3 {[%clk 0:00:02]} 43. Ne4 {[%clk 0:00:03]}  Rxb3 {[%clk 0:00:02]} 44. Nxc5 {[%clk 0:00:03]}  Ne1+ {[%clk 0:00:02]} 45. Kf1 {[%clk 0:00:03]}  Rb1 {[%clk 0:00:02]} 46. Ke2 {[%clk 0:00:01]}  Nc2 {[%clk 0:00:02]} 47. Kf3 {[%clk 0:00:02]}  Nd4+ {[%clk 0:00:03]} 48. Kg2 {[%clk 0:00:02]}  Nf5 {[%clk 0:00:01]} 49. Ne6 {[%clk 0:00:02]}  Rb2 {[%clk 0:00:01]} 50. Ng5 {[%clk 0:00:01]}  Ne3+ {[%clk 0:00:01]} 0-1


[Site "https://www.chess.com"]

[Event "Titled Tuesday Blitz December 14 2021"]
[White "Csonka, Balazs"]
[Black "Zierk, Steven"]
[WhiteFideId "742910"]
[BlackFideId "2034255"]
[WhiteElo "2404"]
[BlackElo "2494"]
[Result "1/2-1/2"]
[Round "11"]
[TimeControl "180+1"]
[Date "2021.12.14"]
[WhiteClock "0:00:04"]
[BlackClock "0:00:12"]

1. e4 {[%clk 0:03:00]}  e6 {[%clk 0:02:59]} 2. d4 {[%clk 0:02:58]}  d5 {[%clk 0:02:59]} 3. Nc3 {[%clk 0:02:48]}  Bb4 {[%clk 0:02:58]} 4. Ne2 {[%clk 0:02:44]}  dxe4 {[%clk 0:02:58]} 5. a3 {[%clk 0:02:44]}  Be7 {[%clk 0:02:54]} 6. Nxe4 {[%clk 0:02:41]}  Nf6 {[%clk 0:02:55]} 7. Nxf6+ {[%clk 0:02:41]}  Bxf6 {[%clk 0:02:56]} 8. Be3 {[%clk 0:02:40]}  b6 {[%clk 0:02:56]} 9. Nf4 {[%clk 0:02:28]}  Bb7 {[%clk 0:02:54]} 10. Nh5 {[%clk 0:02:04]}  Nd7 {[%clk 0:02:54]} 11. Nxf6+ {[%clk 0:02:00]}  Nxf6 {[%clk 0:02:53]} 12. Bb5+ {[%clk 0:01:59]}  c6 {[%clk 0:02:50]} 13. Be2 {[%clk 0:01:56]}  Nd5 {[%clk 0:02:48]} 14. Bc1 {[%clk 0:01:48]}  Qf6 {[%clk 0:02:44]} 15. O-O {[%clk 0:01:43]}  O-O {[%clk 0:02:41]} 16. c3 {[%clk 0:01:38]}  Rad8 {[%clk 0:02:37]} 17. Qc2 {[%clk 0:01:23]}  Rfe8 {[%clk 0:02:31]} 18. Bd3 {[%clk 0:01:16]}  h6 {[%clk 0:02:29]} 19. Bd2 {[%clk 0:01:12]}  c5 {[%clk 0:02:23]} 20. dxc5 {[%clk 0:00:58]}  Nf4 {[%clk 0:02:08]} 21. Bxf4 {[%clk 0:00:49]}  Qxf4 {[%clk 0:02:09]} 22. Rfd1 {[%clk 0:00:27]}  Rd5 {[%clk 0:01:41]} 23. Bh7+ {[%clk 0:00:17]}  Kh8 {[%clk 0:01:40]} 24. Rxd5 {[%clk 0:00:15]}  Bxd5 {[%clk 0:01:39]} 25. Bd3 {[%clk 0:00:11]}  bxc5 {[%clk 0:01:37]} 26. c4 {[%clk 0:00:08]}  Bc6 {[%clk 0:01:35]} 27. Rd1 {[%clk 0:00:08]}  Rd8 {[%clk 0:01:33]} 28. Bf1 {[%clk 0:00:07]}  Rd4 {[%clk 0:01:30]} 29. b4 {[%clk 0:00:05]}  Qd6 {[%clk 0:01:11]} 30. Rxd4 {[%clk 0:00:04]}  Qxd4 {[%clk 0:01:10]} 31. b5 {[%clk 0:00:04]}  Be4 {[%clk 0:01:10]} 32. Qa4 {[%clk 0:00:04]}  Qa1 {[%clk 0:01:07]} 33. Qb3 {[%clk 0:00:03]}  Qc1 {[%clk 0:01:05]} 34. h3 {[%clk 0:00:03]}  e5 {[%clk 0:00:59]} 35. a4 {[%clk 0:00:02]}  Qe1 {[%clk 0:00:57]} 36. Qe3 {[%clk 0:00:02]}  Qxe3 {[%clk 0:00:57]} 37. fxe3 {[%clk 0:00:03]}  Kg8 {[%clk 0:00:55]} 38. a5 {[%clk 0:00:03]}  Kf8 {[%clk 0:00:54]} 39. Be2 {[%clk 0:00:03]}  Ke7 {[%clk 0:00:50]} 40. Bf3 {[%clk 0:00:03]}  Bd3 {[%clk 0:00:47]} 41. b6 {[%clk 0:00:04]}  axb6 {[%clk 0:00:47]} 42. axb6 {[%clk 0:00:02]}  Kd6 {[%clk 0:00:46]} 43. Bd5 {[%clk 0:00:02]}  f5 {[%clk 0:00:43]} 44. Kf2 {[%clk 0:00:02]}  g5 {[%clk 0:00:43]} 45. Ke1 {[%clk 0:00:01]}  f4 {[%clk 0:00:39]} 46. Kf2 {[%clk 0:00:01]}  Bf5 {[%clk 0:00:38]} 47. exf4 {[%clk 0:00:01]}  exf4 {[%clk 0:00:31]} 48. g3 {[%clk 0:00:01]}  Bxh3 {[%clk 0:00:29]} 49. gxf4 {[%clk 0:00:01]}  gxf4 {[%clk 0:00:24]} 50. Kf3 {[%clk 0:00:02]}  Bd7 {[%clk 0:00:17]} 51. Kxf4 {[%clk 0:00:02]}  Bh3 {[%clk 0:00:12]} 52. Kg3 {[%clk 0:00:02]}  Bf5 {[%clk 0:00:12]} 53. Kh4 {[%clk 0:00:02]}  Bg6 {[%clk 0:00:13]} 54. Kg4 {[%clk 0:00:03]}  Kd7 {[%clk 0:00:13]} 55. Kh4 {[%clk 0:00:03]}  Kc8 {[%clk 0:00:13]} 56. Kg4 {[%clk 0:00:04]}  Kd7 {[%clk 0:00:13]} 57. Kh4 {[%clk 0:00:04]}  Kd6 {[%clk 0:00:13]} 58. Kg4 {[%clk 0:00:05]}  Be8 {[%clk 0:00:13]} 59. Kh4 {[%clk 0:00:04]}  Bg6 {[%clk 0:00:12]} 1/2-1/2


[Site "https://www.chess.com"]

[Event "Titled Tuesday Blitz December 14 2021"]
[White "Durarbayli, Vasif"]
[Black "Shipov, Sergei"]
[WhiteFideId "13402935"]
[BlackFideId "4113624"]
[WhiteElo "2599"]
[BlackElo "2745"]
[Result "0-1"]
[Round "11"]
[TimeControl "180+1"]
[Date "2021.12.14"]
[WhiteClock "0:00:01"]
[BlackClock "0:00:19"]

1. e4 {[%clk 0:03:00]}  e6 {[%clk 0:02:59]} 2. d4 {[%clk 0:02:59]}  d5 {[%clk 0:02:59]} 3. e5 {[%clk 0:03:00]}  Bd7 {[%clk 0:02:58]} 4. Nf3 {[%clk 0:02:57]}  a6 {[%clk 0:02:59]} 5. Nc3 {[%clk 0:02:36]}  c5 {[%clk 0:02:58]} 6. dxc5 {[%clk 0:02:31]}  Bxc5 {[%clk 0:02:56]} 7. Bd3 {[%clk 0:02:32]}  Nc6 {[%clk 0:02:56]} 8. O-O {[%clk 0:02:31]}  Nge7 {[%clk 0:02:56]} 9. Qe2 {[%clk 0:02:26]}  Ng6 {[%clk 0:02:51]} 10. Re1 {[%clk 0:02:18]}  O-O {[%clk 0:02:50]} 11. Bg5 {[%clk 0:01:54]}  Nd4 {[%clk 0:02:40]} 12. Nxd4 {[%clk 0:01:40]}  Qxg5 {[%clk 0:02:39]} 13. Nf3 {[%clk 0:01:41]}  Qf4 {[%clk 0:02:26]} 14. g3 {[%clk 0:01:04]}  Qg4 {[%clk 0:02:25]} 15. Nd2 {[%clk 0:01:00]}  Qxe2 {[%clk 0:02:24]} 16. Rxe2 {[%clk 0:01:01]}  Bd4 {[%clk 0:02:23]} 17. Nf3 {[%clk 0:01:01]}  Bxc3 {[%clk 0:02:23]} 18. bxc3 {[%clk 0:01:02]}  Rfc8 {[%clk 0:02:23]} 19. Rb1 {[%clk 0:00:58]}  b5 {[%clk 0:02:22]} 20. Rb3 {[%clk 0:00:58]}  Rc5 {[%clk 0:02:22]} 21. Bxg6 {[%clk 0:00:57]}  hxg6 {[%clk 0:02:17]} 22. Nd4 {[%clk 0:00:56]}  Rac8 {[%clk 0:02:17]} 23. Re3 {[%clk 0:00:56]}  a5 {[%clk 0:02:14]} 24. Kf1 {[%clk 0:00:45]}  a4 {[%clk 0:02:14]} 25. Rb4 {[%clk 0:00:39]}  Rxc3 {[%clk 0:02:14]} 26. Ke2 {[%clk 0:00:38]}  R3c5 {[%clk 0:01:53]} 27. Kd2 {[%clk 0:00:36]}  g5 {[%clk 0:01:50]} 28. c3 {[%clk 0:00:30]}  Kh7 {[%clk 0:01:49]} 29. Nf3 {[%clk 0:00:23]}  f6 {[%clk 0:01:48]} 30. h4 {[%clk 0:00:23]}  gxh4 {[%clk 0:01:39]} 31. Rxh4+ {[%clk 0:00:24]}  Kg6 {[%clk 0:01:37]} 32. Rg4+ {[%clk 0:00:23]}  Kf7 {[%clk 0:01:37]} 33. a3 {[%clk 0:00:22]}  Rc4 {[%clk 0:01:29]} 34. Rd4 {[%clk 0:00:18]}  Rh8 {[%clk 0:01:24]} 35. Re1 {[%clk 0:00:13]}  Rc5 {[%clk 0:01:21]} 36. Rf4 {[%clk 0:00:12]}  Ke7 {[%clk 0:00:59]} 37. Rg4 {[%clk 0:00:12]}  Rh7 {[%clk 0:00:59]} 38. Nd4 {[%clk 0:00:08]}  Kf7 {[%clk 0:00:58]} 39. Rf4 {[%clk 0:00:09]}  Rc4 {[%clk 0:00:56]} 40. g4 {[%clk 0:00:05]}  Rh3 {[%clk 0:00:53]} 41. Re3 {[%clk 0:00:04]}  Rxe3 {[%clk 0:00:52]} 42. fxe3 {[%clk 0:00:05]}  Kg6 {[%clk 0:00:50]} 43. Nf3 {[%clk 0:00:05]}  Rc8 {[%clk 0:00:44]} 44. g5 {[%clk 0:00:05]}  fxg5 {[%clk 0:00:41]} 45. Rg4 {[%clk 0:00:05]}  Rh8 {[%clk 0:00:34]} 46. Rxg5+ {[%clk 0:00:05]}  Kf7 {[%clk 0:00:34]} 47. Rg1 {[%clk 0:00:04]}  Rh5 {[%clk 0:00:34]} 48. Kd3 {[%clk 0:00:04]}  Be8 {[%clk 0:00:22]} 49. Kd4 {[%clk 0:00:04]}  Kf8 {[%clk 0:00:19]} 50. Kc5 {[%clk 0:00:03]}  Rh3 {[%clk 0:00:19]} 51. Rf1 {[%clk 0:00:02]}  Ke7 {[%clk 0:00:19]} 52. Kd4 {[%clk 0:00:01]}  Bh5 {[%clk 0:00:19]} 53. Ng5 {[%clk 0:00:01]}  Rh4+ {[%clk 0:00:19]} 0-1


[Site "https://www.chess.com"]

[Event "Titled Tuesday Blitz December 14 2021"]
[White "Goryachkina, Aleksandra"]
[Black "Sychev, Klementy"]
[WhiteFideId "4147103"]
[BlackFideId "4114060"]
[WhiteElo "2441"]
[BlackElo "2615"]
[Result "1-0"]
[Round "11"]
[TimeControl "180+1"]
[Date "2021.12.14"]
[WhiteClock "0:00:10"]
[BlackClock "0:00:03"]

1. e4 {[%clk 0:03:00]}  g6 {[%clk 0:02:49]} 2. d4 {[%clk 0:02:57]}  Bg7 {[%clk 0:02:50]} 3. c4 {[%clk 0:02:57]}  Nc6 {[%clk 0:02:45]} 4. d5 {[%clk 0:02:53]}  Nd4 {[%clk 0:02:45]} 5. Nc3 {[%clk 0:02:48]}  c5 {[%clk 0:02:44]} 6. Be3 {[%clk 0:02:41]}  d6 {[%clk 0:02:42]} 7. Nge2 {[%clk 0:02:37]}  Qb6 {[%clk 0:02:33]} 8. Qd2 {[%clk 0:02:31]}  e5 {[%clk 0:02:30]} 9. dxe6 {[%clk 0:02:08]}  Bxe6 {[%clk 0:02:23]} 10. O-O-O {[%clk 0:01:59]}  Nxe2+ {[%clk 0:01:21]} 11. Bxe2 {[%clk 0:01:58]}  O-O-O {[%clk 0:01:18]} 12. Nb5 {[%clk 0:01:29]}  Ne7 {[%clk 0:01:04]} 13. Bf4 {[%clk 0:01:11]}  Be5 {[%clk 0:00:58]} 14. Bxe5 {[%clk 0:01:09]}  dxe5 {[%clk 0:00:58]} 15. Qg5 {[%clk 0:01:07]}  Nc6 {[%clk 0:00:53]} 16. Bg4 {[%clk 0:01:03]}  Nb4 {[%clk 0:00:42]} 17. Bxe6+ {[%clk 0:00:36]}  Qxe6 {[%clk 0:00:42]} 18. Nxa7+ {[%clk 0:00:28]}  Kb8 {[%clk 0:00:22]} 19. Rxd8+ {[%clk 0:00:28]}  Kxa7 {[%clk 0:00:22]} 20. Rd5 {[%clk 0:00:23]}  Qa6 {[%clk 0:00:22]} 21. Qxe5 {[%clk 0:00:18]}  Qxc4+ {[%clk 0:00:17]} 22. Kd2 {[%clk 0:00:18]}  Qc2+ {[%clk 0:00:07]} 23. Ke3 {[%clk 0:00:18]}  Nxd5+ {[%clk 0:00:06]} 24. Qxd5 {[%clk 0:00:18]}  f5 {[%clk 0:00:06]} 25. Rd1 {[%clk 0:00:15]}  Re8 {[%clk 0:00:05]} 26. f3 {[%clk 0:00:14]}  fxe4 {[%clk 0:00:05]} 27. fxe4 {[%clk 0:00:11]}  Rf8 {[%clk 0:00:05]} 28. Qd2 {[%clk 0:00:09]}  Qc4 {[%clk 0:00:04]} 29. Rc1 {[%clk 0:00:08]}  Qb5 {[%clk 0:00:02]} 30. Qc3 {[%clk 0:00:07]}  Rc8 {[%clk 0:00:02]} 31. b4 {[%clk 0:00:07]}  Kb8 {[%clk 0:00:02]} 32. bxc5 {[%clk 0:00:07]}  Rc6 {[%clk 0:00:03]} 33. Qe5+ {[%clk 0:00:07]}  Ka7 {[%clk 0:00:03]} 34. Rc3 {[%clk 0:00:07]}  Qb1 {[%clk 0:00:03]} 35. Ra3+ {[%clk 0:00:07]}  Ra6 {[%clk 0:00:03]} 36. Rxa6+ {[%clk 0:00:07]}  Kxa6 {[%clk 0:00:03]} 37. Qd6+ {[%clk 0:00:08]}  Ka5 {[%clk 0:00:03]} 38. Qb6+ {[%clk 0:00:08]}  Qxb6 {[%clk 0:00:02]} 39. cxb6 {[%clk 0:00:09]}  Kxb6 {[%clk 0:00:03]} 40. Kd4 {[%clk 0:00:09]}  Kc6 {[%clk 0:00:03]} 41. Ke5 {[%clk 0:00:10]}  Kd7 {[%clk 0:00:03]} 42. Kf6 {[%clk 0:00:10]} 1-0


[Site "https://www.chess.com"]

[Event "Titled Tuesday Blitz December 14 2021"]
[White "Harshavardhan G B"]
[Black "Maksimovic, Bojan"]
[WhiteFideId "25059009"]
[BlackFideId "14408120"]
[WhiteElo "1825"]
[BlackElo "2458"]
[Result "1-0"]
[Round "11"]
[TimeControl "180+1"]
[Date "2021.12.14"]
[WhiteClock "0:01:11"]
[BlackClock "0:00:01"]

1. f4 {[%clk 0:03:00]}  d5 {[%clk 0:02:57]} 2. c4 {[%clk 0:02:59]}  d4 {[%clk 0:02:56]} 3. Nf3 {[%clk 0:02:59]}  Nc6 {[%clk 0:02:50]} 4. g3 {[%clk 0:02:58]}  g6 {[%clk 0:02:47]} 5. Bg2 {[%clk 0:02:59]}  Bg7 {[%clk 0:02:47]} 6. O-O {[%clk 0:02:59]}  Nh6 {[%clk 0:02:46]} 7. d3 {[%clk 0:02:55]}  O-O {[%clk 0:02:46]} 8. Nbd2 {[%clk 0:02:54]}  Nf5 {[%clk 0:02:30]} 9. Nb3 {[%clk 0:02:53]}  a5 {[%clk 0:02:28]} 10. a4 {[%clk 0:02:49]}  Ra6 {[%clk 0:02:13]} 11. Bd2 {[%clk 0:02:44]}  Ne3 {[%clk 0:02:09]} 12. Bxe3 {[%clk 0:02:43]}  dxe3 {[%clk 0:02:10]} 13. Rb1 {[%clk 0:02:44]}  Rb6 {[%clk 0:02:08]} 14. Qc2 {[%clk 0:02:39]}  Rb4 {[%clk 0:01:44]} 15. Nc5 {[%clk 0:02:37]}  Bg4 {[%clk 0:01:40]} 16. b3 {[%clk 0:02:21]}  Bxf3 {[%clk 0:01:32]} 17. Bxf3 {[%clk 0:02:22]}  Nd4 {[%clk 0:01:32]} 18. Qd1 {[%clk 0:02:21]}  c6 {[%clk 0:01:31]} 19. Ne4 {[%clk 0:02:21]}  Qb6 {[%clk 0:01:28]} 20. c5 {[%clk 0:02:18]}  Qd8 {[%clk 0:01:27]} 21. Qc1 {[%clk 0:02:18]}  Nxb3 {[%clk 0:01:18]} 22. Qa3 {[%clk 0:02:16]}  Nd2 {[%clk 0:00:57]} 23. Rxb4 {[%clk 0:02:13]}  axb4 {[%clk 0:00:58]} 24. Qxb4 {[%clk 0:02:14]}  Nxf1 {[%clk 0:00:51]} 25. Kxf1 {[%clk 0:02:12]}  Qc7 {[%clk 0:00:51]} 26. h4 {[%clk 0:02:05]}  h6 {[%clk 0:00:49]} 27. h5 {[%clk 0:02:01]}  f5 {[%clk 0:00:49]} 28. Nc3 {[%clk 0:01:55]}  g5 {[%clk 0:00:48]} 29. Nd1 {[%clk 0:01:53]}  g4 {[%clk 0:00:30]} 30. Bg2 {[%clk 0:01:52]}  e5 {[%clk 0:00:30]} 31. Nxe3 {[%clk 0:01:51]}  exf4 {[%clk 0:00:31]} 32. gxf4 {[%clk 0:01:51]}  Kh8 {[%clk 0:00:30]} 33. Qc4 {[%clk 0:01:49]}  Qe7 {[%clk 0:00:30]} 34. Nc2 {[%clk 0:01:47]}  Qh4 {[%clk 0:00:25]} 35. Qb3 {[%clk 0:01:39]}  Qe7 {[%clk 0:00:21]} 36. d4 {[%clk 0:01:39]}  Qf7 {[%clk 0:00:17]} 37. Qxf7 {[%clk 0:01:38]}  Rxf7 {[%clk 0:00:18]} 38. e3 {[%clk 0:01:38]}  Bf6 {[%clk 0:00:17]} 39. Ke2 {[%clk 0:01:38]}  Bd8 {[%clk 0:00:17]} 40. Kd3 {[%clk 0:01:38]}  Ba5 {[%clk 0:00:17]} 41. Kc4 {[%clk 0:01:39]}  Kg7 {[%clk 0:00:17]} 42. Nb4 {[%clk 0:01:39]}  Bxb4 {[%clk 0:00:17]} 43. Kxb4 {[%clk 0:01:39]}  Kf6 {[%clk 0:00:18]} 44. Ka5 {[%clk 0:01:40]}  Rf8 {[%clk 0:00:17]} 45. Kb6 {[%clk 0:01:41]}  Ra8 {[%clk 0:00:18]} 46. Kxb7 {[%clk 0:01:38]}  Rxa4 {[%clk 0:00:18]} 47. Kxc6 {[%clk 0:01:29]}  Ra2 {[%clk 0:00:17]} 48. Bd5 {[%clk 0:01:28]}  g3 {[%clk 0:00:17]} 49. Kd7 {[%clk 0:01:16]}  g2 {[%clk 0:00:16]} 50. Bxg2 {[%clk 0:01:15]}  Rxg2 {[%clk 0:00:17]} 51. c6 {[%clk 0:01:16]}  Rg7+ {[%clk 0:00:17]} 52. Kd6 {[%clk 0:01:16]}  Ra7 {[%clk 0:00:03]} 53. c7 {[%clk 0:01:17]}  Ra6+ {[%clk 0:00:03]} 54. Kd7 {[%clk 0:01:17]}  Ra7 {[%clk 0:00:03]} 55. d5 {[%clk 0:01:16]}  Kf7 {[%clk 0:00:03]} 56. Kd8 {[%clk 0:01:15]}  Ra5 {[%clk 0:00:02]} 57. d6 {[%clk 0:01:14]}  Rd5 {[%clk 0:00:02]} 58. d7 {[%clk 0:01:14]}  Ke6 {[%clk 0:00:01]} 59. c8=Q {[%clk 0:01:13]}  Rd6 {[%clk 0:00:02]} 60. Qc4+ {[%clk 0:01:13]}  Kf6 {[%clk 0:00:02]} 61. Ke8 {[%clk 0:01:13]}  Re6+ {[%clk 0:00:02]} 62. Kf8 {[%clk 0:01:12]}  Re8+ {[%clk 0:00:01]} 63. dxe8=N# {[%clk 0:01:11]} 1-0


[Site "https://www.chess.com"]

[Event "Titled Tuesday Blitz December 14 2021"]
[White "Holt, Conrad"]
[Black "Xiong, Jeffery"]
[WhiteFideId "2034387"]
[BlackFideId "2047640"]
[WhiteElo "2586"]
[BlackElo "2727"]
[Result "0-1"]
[Round "11"]
[TimeControl "180+1"]
[Date "2021.12.14"]
[WhiteClock "0:00:01"]
[BlackClock "0:00:24"]

1. d4 {[%clk 0:03:00]}  Nf6 {[%clk 0:03:00]} 2. c4 {[%clk 0:03:01]}  e6 {[%clk 0:02:59]} 3. Nc3 {[%clk 0:03:01]}  d5 {[%clk 0:03:00]} 4. cxd5 {[%clk 0:03:01]}  exd5 {[%clk 0:03:01]} 5. Bg5 {[%clk 0:03:01]}  Be7 {[%clk 0:03:02]} 6. e3 {[%clk 0:03:01]}  c6 {[%clk 0:03:01]} 7. Bd3 {[%clk 0:03:00]}  O-O {[%clk 0:03:01]} 8. Qc2 {[%clk 0:02:59]}  h6 {[%clk 0:03:00]} 9. Bh4 {[%clk 0:03:00]}  a5 {[%clk 0:02:58]} 10. Nf3 {[%clk 0:02:58]}  Na6 {[%clk 0:02:59]} 11. a3 {[%clk 0:02:57]}  Nc7 {[%clk 0:02:59]} 12. O-O {[%clk 0:02:57]}  Ne6 {[%clk 0:02:59]} 13. Rfd1 {[%clk 0:02:51]}  Re8 {[%clk 0:02:58]} 14. Rac1 {[%clk 0:02:49]}  b6 {[%clk 0:02:40]} 15. Ne5 {[%clk 0:02:45]}  Bb7 {[%clk 0:02:40]} 16. b4 {[%clk 0:02:30]}  axb4 {[%clk 0:02:39]} 17. axb4 {[%clk 0:02:30]}  Bxb4 {[%clk 0:02:08]} 18. Bh7+ {[%clk 0:02:25]}  Kf8 {[%clk 0:02:09]} 19. Bxf6 {[%clk 0:02:24]}  gxf6 {[%clk 0:02:10]} 20. Nd3 {[%clk 0:01:42]}  Bd6 {[%clk 0:02:09]} 21. Qe2 {[%clk 0:01:39]}  Ng7 {[%clk 0:02:01]} 22. Qg4 {[%clk 0:01:36]}  f5 {[%clk 0:01:48]} 23. Bxf5 {[%clk 0:01:33]}  Qg5 {[%clk 0:01:48]} 24. Bd7 {[%clk 0:01:29]}  Re7 {[%clk 0:01:40]} 25. Ne2 {[%clk 0:01:19]}  Qxg4 {[%clk 0:01:28]} 26. Bxg4 {[%clk 0:01:20]}  Ne6 {[%clk 0:01:29]} 27. Rb1 {[%clk 0:01:16]}  Ba6 {[%clk 0:01:26]} 28. Bxe6 {[%clk 0:00:45]}  Bxd3 {[%clk 0:01:19]} 29. Rxd3 {[%clk 0:00:43]}  fxe6 {[%clk 0:01:20]} 30. Rc3 {[%clk 0:00:42]}  c5 {[%clk 0:01:07]} 31. Rxb6 {[%clk 0:00:41]}  cxd4 {[%clk 0:01:07]} 32. exd4 {[%clk 0:00:30]}  Ra1+ {[%clk 0:01:08]} 33. Rc1 {[%clk 0:00:29]}  Rxc1+ {[%clk 0:01:05]} 34. Nxc1 {[%clk 0:00:29]}  Rc7 {[%clk 0:01:00]} 35. Ne2 {[%clk 0:00:26]}  Ke7 {[%clk 0:01:00]} 36. Rb2 {[%clk 0:00:22]}  e5 {[%clk 0:00:59]} 37. dxe5 {[%clk 0:00:19]}  Bxe5 {[%clk 0:01:00]} 38. Rd2 {[%clk 0:00:19]}  Kd6 {[%clk 0:01:01]} 39. g3 {[%clk 0:00:18]}  Rc4 {[%clk 0:00:56]} 40. Kg2 {[%clk 0:00:18]}  Kc5 {[%clk 0:00:56]} 41. Kf3 {[%clk 0:00:18]}  Bc7 {[%clk 0:00:52]} 42. Rd3 {[%clk 0:00:15]}  Be5 {[%clk 0:00:40]} 43. Ke3 {[%clk 0:00:14]}  Re4+ {[%clk 0:00:38]} 44. Kd2 {[%clk 0:00:14]}  Ra4 {[%clk 0:00:38]} 45. f4 {[%clk 0:00:12]}  Bf6 {[%clk 0:00:33]} 46. Ke3 {[%clk 0:00:09]}  Kc4 {[%clk 0:00:33]} 47. g4 {[%clk 0:00:05]}  Ra8 {[%clk 0:00:28]} 48. Rd1 {[%clk 0:00:03]}  Ra3+ {[%clk 0:00:29]} 49. Kf2 {[%clk 0:00:03]}  d4 {[%clk 0:00:28]} 50. Rc1+ {[%clk 0:00:01]}  Kd5 {[%clk 0:00:28]} 51. Rd1 {[%clk 0:00:01]}  Ke4 {[%clk 0:00:27]} 52. h3 {[%clk 0:00:01]}  Bh4+ {[%clk 0:00:27]} 53. Kg2 {[%clk 0:00:01]}  d3 {[%clk 0:00:24]} 0-1


[Site "https://www.chess.com"]